Cogmind - Beta 17.1 @@@ ROGUE MODE // 2026.09.16 @ 05:06:04 Player: Somberlain Result: Destroyed by B-86 Titan with Railgun Performance ------------- Evolutions (7) 3500 Regions Visited (15) 3000 Robots Destroyed (161) 805 Value Destroyed (5892) 5892 Prototype IDs (24) 480 Alien Tech Used (0) 0 Bonus (-90) -90 TOTAL SCORE: 13587 Bonus ------- High Alert Combat Kills 19 Follower Combat Kills 668 Registered with UFD 300 Met Optimus in HQ 500 Friendly Fire -1577 Cogmind --------- Core Integrity 0/1300 Matter 231/300 Energy 599/600 System Corruption 6% Temperature Cool (0) Movement Core (50) Location -3/Research Parts ------- > --- POWER (2) -------- (None) > --- PROPULSION (4) --- (None) > --- UTILITY (11) ----- Advanced Energy Well Experimental Signal Interpreter Advanced Target Analyzer Hacking Suite System Shield > --- WEAPON (4) ------- (None) > --- INVENTORY (5) ---- Authchip [Processor] Authchip [Weapon] Improved Remote Datajack PL-3XN's Ring of Power Peak State ------------ > --- POWER ------------ Micro Antimatter Reactor Compact Particle Reactor > --- PROPULSION ------- Myomer Leg Myomer Leg Myomer Leg Myomer Leg > --- UTILITY ---------- Experimental Power Amplifier Advanced Cooling System Large Storage Unit Advanced Energy Well Advanced Sensor Array Experimental Signal Interpreter Improved Phase Shifter Medium Regenerative Plating Advanced Force Field Hacking Suite System Shield > --- WEAPON ----------- Enhanced Quantum Rifle Enhanced Quantum Rifle Enhanced Quantum Rifle Thermal Lance > --- INVENTORY -------- Improved Trap Scanner Advanced Sensor Array Authchip [R/NC] Authchip [Device] Authchip [Processor] Authchip [Weapon] A0-MCA's Component Scanner System Restoration Module Quantum Rifle Quantum Rifle Quantum Rifle Enhanced Quantum Rifle Improved Remote Datajack Companion Sword PL-3XN's Ring of Power [Rating: 156] Favorites ----------- Power Light Deuterium Engine Engine Light Deuterium Engine Power Core Micro Nuclear Core Reactor Micro Antimatter Reactor Propulsion VSS Leg Treads Light Treads Leg VSS Leg Hover Unit Antigrav Array Flight Unit Xenon Bombardment Thruster Utility Hacking Suite Device Improved Sensor Array Storage Large Storage Unit Processor Experimental Signal Interpreter Hackware Hacking Suite Protection Medium Regenerative Plating Weapon Spread Laser Energy Gun Spread Laser Ballistic Gun Gauss Rifle Launcher Mini Grenade Launcher Special Weapon Remote Datajack Slashing Weapon Makeshift Axe Piercing Weapon Thermal Lance Build | -11 -10 -10 -9 -9 -9 -8 -8 -8 -8 -8 -6 -6 -5 -4 -3 ------- Run | Yrd Mat Min Mat Min Exi Min Mat Sto Rec Scr Fac Ext Fac Fac Res Slots Evolved 14 | . . . 2 . . . 2 . . . 4 . 2 2 2 Power 1 | . . . . . . . . . . . 1 . . . . Propulsion 2 | . . . . . . . 1 . . . . . 1 . . Utility 9 | . . . 2 . . . 1 . . . 3 . 1 2 . Weapon 2 | . . . . . . . . . . . . . . . 2 Parts Attached 121 | 8 5 . 14 . 3 . 13 4 1 7 13 19 7 11 16 Power 18 | 1 . . 1 . 1 . 2 1 . 1 4 4 . 1 2 Engine 9 | 1 . . 1 . 1 . 1 1 . 1 1 2 . . . Core 4 | . . . . . . . 1 . . . 3 . . . . Reactor 5 | . . . . . . . . . . . . 2 . 1 2 Propulsion 33 | 4 2 . 6 . 1 . 3 . . 1 1 7 1 4 3 Treads 2 | 2 . . . . . . . . . . . . . . . Leg 23 | 2 . . 4 . 1 . 3 . . 1 1 6 . 4 1 Wheel . | . . . . . . . . . . . . . . . . Hover 7 | . 2 . 2 . . . . . . . . 1 1 . 1 Flight 1 | . . . . . . . . . . . . . . . 1 Utility 44 | 1 1 . 3 . . . 6 1 1 2 8 6 6 4 5 Device 27 | . . . 2 . . . 2 1 . . 6 3 6 4 3 Storage 3 | 1 . . 1 . . . . . . . . . . . 1 Processor 7 | . 1 . . . . . 3 . . 2 . . . . 1 Hackware 6 | . . . . . . . 1 . 1 . 2 2 . . . Protection 1 | . . . . . . . . . . . . 1 . . . Artifact . | . . . . . . . . . . . . . . . . Weapon 26 | 2 2 . 4 . 1 . 2 2 . 3 . 2 . 2 6 Energy Gun 13 | 2 . . 3 . . . 2 . . . . . . 2 4 Energy Cannon . | . . . . . . . . . . . . . . . . Ballistic Gun 4 | . . . . . . . . 2 . . . . . . 2 Ballistic Cannon . | . . . . . . . . . . . . . . . . Launcher 3 | . 2 . 1 . . . . . . . . . . . . Special Weapon 2 | . . . . . . . . . . . . 2 . . . Impact Weapon . | . . . . . . . . . . . . . . . . Slashing Weapon 3 | . . . . . 1 . . . . 2 . . . . . Piercing Weapon 1 | . . . . . . . . . . 1 . . . . . Special Melee Weapon . | . . . . . . . . . . . . . . . . Unidentified Prototypes 6 | . . . . . . . . 1 . 2 . . 2 . 1 Parts Lost 63 | . . . 4 . . . 5 4 . . 7 5 3 3 32 Power 10 | . . . 1 . . . . 2 . . 2 1 . 1 3 Propulsion 16 | . . . 3 . . . 1 2 . . 2 1 . . 7 Utility 23 | . . . . . . . 1 . . . 3 3 3 2 11 Weapon 14 | . . . . . . . 3 . . . . . . . 11 Highest Loss Streak 31 | . . . 1 . . . 2 1 . . 4 3 2 2 31 To Critical Strikes 3 | . . . . . . . . . . . . 1 . . 2 Average Backups 11 | . 3 5 6 6 8 10 11 9 11 14 13 13 13 13 10 Power . | . . . . . . 1 1 . . . . . . 1 . Propulsion . | . 1 2 1 1 1 1 1 2 2 . . . . . . Utility 5 | . . . . . . 1 2 3 6 9 8 9 11 7 6 Weapon 3 | . 2 3 5 5 5 6 4 2 2 2 2 2 . 2 3 Tool/Special . | . . . . . . . . . . . . . . . . Unused Backups 20 | . . . 2 . . 1 . . 1 6 1 2 . . 7 Power 1 | . . . . . . . . . . . 1 . . . . Propulsion 5 | . . . 2 . . . . . 1 2 . . . . . Utility 10 | . . . . . . . . . . 3 . 2 . . 5 Weapon 1 | . . . . . . 1 . . . . . . . . . Tool/Special 3 | . . . . . . . . . . 1 . . . . 2 Average Slot Usage (%) 90 | . 87 100 90 100 98 100 88 86 81 89 89 93 78 79 80 Engine 7 | . 14 14 10 11 11 11 7 1 9 9 7 4 . . . Leg 17 | . . . 8 22 22 22 22 23 18 18 15 17 . 3 14 Hover 2 | . 22 28 12 . . . . . . . . . 10 8 . Device 14 | . . . 14 22 22 22 14 8 9 6 13 17 7 23 17 Storage 8 | . 14 14 11 11 11 11 9 9 9 9 6 6 5 5 6 Processor 11 | . 2 14 11 11 11 11 12 18 9 11 13 13 11 8 4 Hackware 9 | . . . . . . . 7 9 17 18 18 14 19 10 9 Energy Gun 7 | . 16 . 17 21 15 22 8 . . . . . . 4 14 Slashing Weapon 5 | . . . . . 3 . 3 6 9 16 6 5 . . . Piercing Weapon 1 | . . . . . . . . . . . 6 5 5 3 . Peak Build Rating 156 | 6 11 11 19 19 26 25 35 36 31 63 78 99 112 125 156 Average Rating 46 | 4 8 11 15 19 22 24 30 31 30 40 73 73 103 111 121 On Entrance 40 | . 6 11 11 19 19 24 25 33 30 31 63 72 99 93 115 Avg Prop Armor Cover (%) 9 | . . . . . . . . . . 10 10 8 . . . Naked Turns . | . . . . . . . . . . . . . . . . Heaviest Build 101 | 13 13 12 36 37 37 33 34 34 29 38 52 56 56 75 101 Greatest Support 100 | 40 40 14 26 26 33 33 44 44 32 62 59 62 52 100 100 Greatest Overweight (x) 9 | . 1 . 2 1 1 . 1 1 . 1 2 2 1 1 9 Average Overweight (x) . | . . . . 1 . . . . . . . . . . . Largest Inventory Capacity 15 | 8 8 8 15 15 15 15 15 15 15 15 15 15 15 15 15 Average Capacity 14 | 6 8 8 8 15 15 15 15 15 15 15 15 15 15 15 13 Most Carried 15 | . 5 6 8 6 12 12 13 11 14 15 15 15 15 15 15 Average Carried 11 | . 4 5 6 6 8 10 11 9 11 14 14 14 14 14 11 Final Capacity 15 | 8 8 8 15 15 15 15 15 15 15 15 15 15 15 15 5 Final Carried 15 | . 5 6 6 6 10 11 11 9 14 15 15 15 15 12 4 Class Distribution -------------------- 37% | Mutant 25% | Commander-Mutant 14% | Hacker-Gladiator 7% | Hacker-Mutant 5% | Scavenger-Skirmisher 3% | Scavenger-Gladiator 3% | Commander-Gladiator Dominant Class ---------------- Mutant | -10/Materials Mutant | -10/Mines Mutant | -9/Materials Mutant | -9/Mines Mutant | -9/Exiles Commander-Mutant | -8/Mines Mutant | -8/Materials Mutant | -8/Storage Commander-Mutant | -8/Recycling Commander-Mutant | -8/Scraptown Hacker-Gladiator | -6/Factory Scavenger-Gladiator | -6/Extension Hacker-Mutant | -5/Factory Scavenger-Scout | -4/Factory Scavenger-Skirmisher | -3/Research Resources | -11 -10 -10 -9 -9 -9 -8 -8 -8 -8 -8 -6 -6 -5 -4 -3 ----------- Run | Yrd Mat Min Mat Min Exi Min Mat Sto Rec Scr Fac Ext Fac Fac Res Matter Collected 2491 | 241 50 37 444 66 134 67 234 196 58 90 159 285 70 185 175 Remotely . | . . . . . . . . . . . . . . . . Salvage Created 7314 | 53 186 . 496 223 266 118 459 1142 312 46 407 1310 116 954 1226 Parts 349 | 4 20 . 35 15 6 9 24 50 15 4 19 49 3 53 43 Haulers Intercepted 14 | . 1 . 3 . . . 2 4 2 . . . . 2 . Recyclers Shooed 2 | . . . . . . . . . 1 . . 1 . . . Parts Field Recycled . | . . . . . . . . . . . . . . . . Retrieved Matter . | . . . . . . . . . . . . . . . . Parts Self-Destructed . | . . . . . . . . . . . . . . . . Prevented . | . . . . . . . . . . . . . . . . Parts Restored . | . . . . . . . . . . . . . . . . Kills | -11 -10 -10 -9 -9 -9 -8 -8 -8 -8 -8 -6 -6 -5 -4 -3 ------- Run | Yrd Mat Min Mat Min Exi Min Mat Sto Rec Scr Fac Ext Fac Fac Res Combat Hostiles Destroyed 104 | . 9 . 13 8 . 4 10 17 1 1 9 6 3 7 16 Melee 40 | . . . . . . . . 14 1 1 9 4 2 4 5 Guns 37 | . 3 . 8 5 . 4 5 3 . . . . . 1 8 AOE 20 | . 6 . 5 3 . . 5 . . . . . . 1 . Classes Destroyed 16 | 1 5 . 2 1 . 3 . . 2 1 . 1 . . . Worker 8 | . . . . . . 1 1 2 . . . . 1 3 . Builder 2 | . . . . . . . . . 1 . . . . 1 . Tunneler 1 | . . . . . . 1 . . . . . . . . . Hauler 14 | . 1 . 3 . . . 2 4 2 . . . . 2 . Recycler 15 | 1 . . . . . . 1 1 2 . . 7 . 2 1 Operator 7 | . 2 . 2 . . . . . . . 1 1 1 . . Watcher 8 | . 1 . 1 . . . . 2 . . . 1 . 2 1 Swarmer 18 | . 6 . . . . 4 . 3 . . 3 . . . 2 Grunt 45 | . 3 . 9 6 . . 7 8 . . 2 4 . . 6 Brawler 1 | . . . . 1 . . . . . . . . . . . Duelist 3 | . . . 1 1 . . 1 . . . . . . . . Sentry 13 | . . . 3 . . . 2 5 . . . 1 . 1 1 Hunter 11 | . . . . . . 1 . 1 . . . . 3 4 2 Programmer 12 | . . . . . . . . . 1 . 4 . . 2 5 Behemoth 1 | . . . . . . . . . . . . 1 . . . Ranger 1 | . . . . . . . . . . 1 . . . . . Best Kill Streak 11 | 1 7 . 4 5 . 4 7 11 3 1 3 2 3 9 10 Combat Bots Only 9 | . 3 . 4 5 . 2 5 8 1 1 3 2 3 3 9 Max Kills in Single Turn 8 | 1 3 . 2 2 . 2 2 2 1 1 1 1 1 8 1 Gunslinging . | . . . . . . . . . . . . . . . . Exploded 3 | . 3 . 1 1 . . 1 . . . . . . 1 . Melee 1 | . . . . . . . . 1 1 1 1 1 1 1 1 Uniques/NPCs Destroyed 1 | . . . . . . . . . . . . 1 . . . A7 (-6/Extension) Combat | -11 -10 -10 -9 -9 -9 -8 -8 -8 -8 -8 -6 -6 -5 -4 -3 -------- Run | Yrd Mat Min Mat Min Exi Min Mat Sto Rec Scr Fac Ext Fac Fac Res Hostile Shots Fired 821 | . 23 . 34 14 . 30 41 50 . 11 55 84 68 57 354 Missed 263 | . 10 . 9 5 . 9 8 19 . 3 18 34 19 26 103 Hits 558 | . 13 . 25 9 . 21 33 31 . 8 37 50 49 31 251 Melee 1 | . . . . 1 . . . . . . . . . . . Projectile 557 | . 13 . 25 8 . 21 33 31 . 8 37 50 49 31 251 Critical Strikes 20 | . . . . . . . 2 2 . 1 3 1 2 . 9 Damage Taken 9664 | . 92 . 376 160 . 208 554 469 . 154 1210 856 857 597 4131 Core 2359 | . 26 . 59 21 . 47 84 135 . 44 263 150 106 101 1323 Absorbed by Shields 317 | . . . . . . . . . . . . 88 . . 229 Regen/Repaired (Parts) 883 | . . . . . . . 73 49 . . 107 19 239 239 157 Core Remaining (%) 77 | 100 . 89 . . . 68 . . . 52 . 51 89 91 . Volleys Fired 168 | 2 21 . 32 11 13 8 29 10 . . . 6 . 5 31 Largest 4 | 2 2 . 2 2 2 2 2 2 . . . 1 . 2 4 Hottest 260 | 80 80 . 130 130 130 130 130 56 . . . 5 . 130 260 Shots Fired 309 | 4 41 . 56 19 15 16 40 20 . . . 6 . 10 82 Gun 252 | 4 30 . 38 16 4 16 32 20 . . . . . 10 82 Cannon . | . . . . . . . . . . . . . . . . Launcher 51 | . 11 . 18 3 11 . 8 . . . . . . . . Special 6 | . . . . . . . . . . . . 6 . . . Kinetic 34 | . . . . . . . . 20 . . . . . . 14 Thermal 201 | 2 15 . 38 16 4 16 32 . . . . . . 10 68 Explosive 51 | . 11 . 18 3 11 . 8 . . . . . . . . Electromagnetic 17 | 2 15 . . . . . . . . . . . . . . Robot Hit Streak 14 | 2 6 . 12 14 7 9 13 7 . . . 5 . 2 8 Robot Miss Streak 12 | 2 3 . 6 4 2 12 5 3 . . . 1 . 1 3 Penetration Max 1 | . . . . . . . . 1 . . . . . . 1 Secondary Targets 9 | . 1 . 1 2 . 2 . . . . . . . . 3 Max Gunslinging Chain 1 | . 1 . 1 1 . 1 . . . . . . . . 1 Shots Hit Robots 366 | 2 19 . 41 15 14 10 42 65 8 3 19 34 8 21 65 Core Hits 317 | 2 17 . 69 28 16 19 58 26 4 . 9 12 4 20 33 Critical Kills 2 | . . . . . . . . 1 . . . . . 1 . Critical Parts Destroyed 1 | . . . . . . . . . . . . . . . 1 Critical Strikes 11 | . . . . . . . 1 7 1 . . . . 1 1 Meltdown 1 | . . . . . . . . . . . . . . 1 . Destroy 2 | . . . . . . . . 1 . . . . . . 1 Sever 8 | . . . . . . . 1 6 1 . . . . . . Melee Attacks 251 | . . . . . 12 . 17 76 8 7 39 37 20 17 18 Thermal 114 | . . . . . . . . . . 3 29 27 20 17 18 Impact . | . . . . . . . . . . . . . . . . Slashing 137 | . . . . . 12 . 17 76 8 4 10 10 . . . Piercing . | . . . . . . . . . . . . . . . . Sneak Attacks 35 | . . . . . . . 3 7 8 . 1 11 2 3 . Combat Hostiles 3 | . . . . . . . . 2 . . . . . 1 . Follow-up Attacks 5 | . . . . . . . . . . 1 2 2 . . . Damage Inflicted 18745 | 32 849 . 1304 542 1250 133 1474 2690 621 189 1266 2685 725 2348 2637 Guns 3634 | 32 217 . 479 222 66 133 461 322 . . . . . 182 1520 Cannons . | . . . . . . . . . . . . . . . . Explosions 3531 | . 632 . 825 320 345 . 536 . . . . . . 873 . Melee 11568 | . . . . . 839 . 477 2368 621 189 1266 2685 725 1293 1105 Ramming 12 | . . . . . . . . . . . . . . . 12 Kinetic 599 | . . . . . . . . 322 . . . . . . 277 Thermal 10245 | 20 149 . 479 222 66 133 461 . . 139 998 2329 725 2176 2348 Explosive 2792 | . 594 . 825 320 345 . 536 . . . . . . 172 . Electromagnetic 118 | 12 106 . . . . . . . . . . . . . . Impact . | . . . . . . . . . . . . . . . . Slashing 4979 | . . . . . 839 . 477 2368 621 50 268 356 . . . Piercing . | . . . . . . . . . . . . . . . . Highest Corruption 6 | . . . . . . . . . . . 4 . . . 6 Average Corruption 2 | . . . . . . . . . . . 2 . . . 3 Corruption Purged 5 | . . . . . . . . . . . 5 . . . . Corruption Blocked . | . . . . . . . . . . . . . . . . Effects 15 | . . . . . . . . . . . 13 . . . 2 Message Errors 5 | . . . . . . . . . . . 5 . . . . Matter Fused 4 | . . . . . . . . . . . 3 . . . 1 Heat Flow Errors 1 | . . . . . . . . . . . 1 . . . . Energy Discharges 1 | . . . . . . . . . . . 1 . . . . Parts Fused 1 | . . . . . . . . . . . . . . . 1 Data Loss (minor) 2 | . . . . . . . . . . . 2 . . . . Data Loss (major) 1 | . . . . . . . . . . . 1 . . . . Overload Shots . | . . . . . . . . . . . . . . . . Overflow Damage 1430 | . 5 . . . 81 . 27 136 127 47 123 540 137 89 118 Projectiles . | . . . . . . . . . . . . . . . . Explosions 24 | . 5 . . . . . . . . . . . . 19 . Melee 1406 | . . . . . 81 . 27 136 127 47 123 540 137 70 118 Knockbacks . | . . . . . . . . . . . . . . . . Impact . | . . . . . . . . . . . . . . . . Kinetic . | . . . . . . . . . . . . . . . . Secondary . | . . . . . . . . . . . . . . . . Self-Inflicted Damage 97 | . . . 36 36 . . 25 . . . . . . . . Shots 4 | . . . 2 1 . . 1 . . . . . . . . Rammed 1 | . . . . . . . . . . . . . . . 1 Targets Rammed 2 | . . . . . . . . . . . . . . . 2 Kicked 1 | . . . . . . . . . . . . . . . 1 Crushed . | . . . . . . . . . . . . . . . . Highest Temperature 393 | 36 246 . 359 123 66 105 393 . . 148 248 250 204 368 245 Average Temperature 86 | 20 99 . 91 50 33 35 138 . . 61 82 69 71 112 100 Received Heat Transfer 1335 | . . . 150 51 . 6 315 252 . 85 21 216 . 36 203 Effects 2 | . . . 1 . . . . . . . 1 . . . . Interference 1 | . . . . . . . . . . . 1 . . . . Matter Decay 1 | . . . 1 . . . . . . . . . . . . Siege Activations . | . . . . . . . . . . . . . . . . Martial Activations . | . . . . . . . . . . . . . . . . Shielding Activations . | . . . . . . . . . . . . . . . . Robots Disrupted . | . . . . . . . . . . . . . . . . Combat Hostiles . | . . . . . . . . . . . . . . . . Robots Corrupted . | . . . . . . . . . . . . . . . . Combat Hostiles . | . . . . . . . . . . . . . . . . Parts Fried . | . . . . . . . . . . . . . . . . Impact Corruptions . | . . . . . . . . . . . . . . . . Robots Melted 8 | . . . . . . . . . . . . 2 1 2 3 Combat Hostiles 7 | . . . . . . . . . . . . 2 1 1 3 Parts Melted 35 | . . . . . . 1 . . . . 6 7 2 5 14 Heat Transferred 13444 | 50 300 . 585 270 65 160 575 . . 200 1560 2760 960 2522 3437 Parts Sabotaged . | . . . . . . . . . . . . . . . . Parts Stolen . | . . . . . . . . . . . . . . . . Parts Stripped . | . . . . . . . . . . . . . . . . Power Chain Reactions 1 | . 1 . . . . . . . . . . . . . . Alert | -11 -10 -10 -9 -9 -9 -8 -8 -8 -8 -8 -6 -6 -5 -4 -3 ------- Run | Yrd Mat Min Mat Min Exi Min Mat Sto Rec Scr Fac Ext Fac Fac Res Maximum Alert Level 2 | . 1 . 1 . . . . 1 . . . . 1 2 1 Low Security (%) 88 | 100 86 100 44 100 . 100 100 64 100 . 100 100 83 78 63 Level 1 10 | . 13 . 55 . . . . 35 . . . . 16 . 36 Level 2 . | . . . . . . . . . . . . . . 21 . Level 3 . | . . . . . . . . . . . . . . . . Level 4 . | . . . . . . . . . . . . . . . . Level 5 . | . . . . . . . . . . . . . . . . High Security . | . . . . . . . . . . . . . . . . Max Security . | . . . . . . . . . . . . . . . . Peak Influence 650 | 5 256 95 283 129 . 115 190 305 93 . 115 142 219 650 309 Initial 309 | . 3 95 13 78 . . . 70 93 . . 11 62 71 309 Average 79 | . 95 69 196 35 . 19 11 191 20 . 21 34 154 220 175 Influence Increases 4936 | 5 346 . 555 209 10 267 368 607 115 . 388 466 405 779 416 Destroy 0b10 Robot/C 2480 | . 180 . 260 160 . 180 200 340 40 . 180 280 200 140 320 Destroy 0b10 Robot/NC 300 | 5 20 . 30 . 10 10 20 45 25 . 5 50 20 50 10 Destroy Leader 522 | . 34 . 68 30 . 30 54 102 . . 60 24 30 48 42 Allied During Kill 133 | . . . . . . 39 . . 7 . . 72 15 . . Successful Hack 144 | . 6 . 28 . . 8 29 8 43 . . 12 . 10 . Disable Machine 465 | . 30 . 45 . . . 30 30 . . 15 . 45 255 15 Anti-Garrison Action 150 | . . . . . . . . . . . . . . 150 . Destroy Structure 442 | . 76 . 94 19 . . 35 7 . . 8 13 80 96 14 Partial Spotted 45 | . . . 30 . . . . . . . . . . 15 . Lose Combat Pursuer 255 | . . . . . . . . 75 . . 120 15 15 15 15 Influence Decreases 4881 | . 105 211 388 411 10 267 199 537 354 . 363 363 386 336 951 Entered New Map 981 | . 2 151 22 124 . . . 99 146 . . 14 66 76 281 Time Decay 3219 | . 103 60 326 287 10 227 177 398 208 . 322 291 230 230 350 Lost Part 539 | . . . 40 . . . 22 40 . . 41 16 30 30 320 Lost Ally 142 | . . . . . . 40 . . . . . 42 60 . . Squads Dispatched 25 | . . . 1 . . . 3 4 . . 4 2 2 3 6 Investigation 2 | . . . . . . . . 1 . . . . . 1 . Extermination 5 | . . . . . . . . . . . 3 . . . 2 Reinforcement 10 | . . . 1 . . . 3 . . . 1 2 2 . 1 Assault 2 | . . . . . . . . . . . . . . 2 . Garrison 6 | . . . . . . . . 3 . . . . . . 3 Intercept . | . . . . . . . . . . . . . . . . Searches Triggered . | . . . . . . . . . . . . . . . . Construction Impeded 1 | . . . . . . . 1 . . . . . . . . Haulers Reinforced 2 | . . . . . . . . . . . . . 1 . 1 Active Scanning Responses . | . . . . . . . . . . . . . . . . Cargo Convoy Interrupts . | . . . . . . . . . . . . . . . . Stealth | -11 -10 -10 -9 -9 -9 -8 -8 -8 -8 -8 -6 -6 -5 -4 -3 --------- Run | Yrd Mat Min Mat Min Exi Min Mat Sto Rec Scr Fac Ext Fac Fac Res Distress Signals 11 | . 1 . 2 . . . . 1 . . 2 2 1 . 2 Communications Jammed . | . . . . . . . . . . . . . . . . Distress Signals . | . . . . . . . . . . . . . . . . Times Spotted 193 | . 11 . 21 8 . 9 17 21 . 13 20 22 11 16 24 Peak Tracking Total 10 | . 5 . 5 4 . 3 6 6 . 5 5 5 5 5 10 Tactical Retreats 10 | . . . . . . . . 1 . . 4 2 1 1 1 ECM-based Alert Blocks 1 | . . . . . . . . . . . . 1 . . . Traps | -11 -10 -10 -9 -9 -9 -8 -8 -8 -8 -8 -6 -6 -5 -4 -3 ------- Run | Yrd Mat Min Mat Min Exi Min Mat Sto Rec Scr Fac Ext Fac Fac Res Traps Triggered 6 | . . . . . . . . 1 . . 2 . 2 1 . Indirectly . | . . . . . . . . . . . . . . . . Trap Hack Attempts . | . . . . . . . . . . . . . . . . Triggered . | . . . . . . . . . . . . . . . . Disarmed . | . . . . . . . . . . . . . . . . Reprogrammed . | . . . . . . . . . . . . . . . . Reused . | . . . . . . . . . . . . . . . . Traps Extracted . | . . . . . . . . . . . . . . . . Installed . | . . . . . . . . . . . . . . . . Triggered . | . . . . . . . . . . . . . . . . Machines | -11 -10 -10 -9 -9 -9 -8 -8 -8 -8 -8 -6 -6 -5 -4 -3 ---------- Run | Yrd Mat Min Mat Min Exi Min Mat Sto Rec Scr Fac Ext Fac Fac Res Machines Disabled 37 | . 2 . 3 . 1 . 2 2 . 4 1 . 3 18 1 Max in Single Turn 17 | . 1 . 1 . 1 . 2 1 . 1 1 . 1 17 1 Garrison Access 2 | . . . . . . . . . . . 1 . . 1 . Machines Repaired . | . . . . . . . . . . . . . . . . Machines Dismantled . | . . . . . . . . . . . . . . . . Machines Sabotaged . | . . . . . . . . . . . . . . . . Overloaded Fab Kills . | . . . . . . . . . . . . . . . . Hacking | -11 -10 -10 -9 -9 -9 -8 -8 -8 -8 -8 -6 -6 -5 -4 -3 --------- Run | Yrd Mat Min Mat Min Exi Min Mat Sto Rec Scr Fac Ext Fac Fac Res Machines Accessed 54 | . 2 . 5 . 2 1 7 6 8 4 10 5 1 3 . Terminals 33 | . 1 . 5 . . 1 4 5 5 . 6 5 1 . . Fabricators 1 | . . . . . . . . . . . . . . 1 . Repair Stations 4 | . . . . . . . 1 1 . . 2 . . . . Recycling Units 4 | . 1 . . . . . . . 3 . . . . . . Scanalyzers 4 | . . . . . . . 2 . . . 1 . . 1 . Garrison Access 2 | . . . . . . . . . . . 1 . . 1 . Total Hacks 136 | . 6 . 14 . 13 1 17 18 21 8 13 18 2 5 . Successful 70 | . 2 . 5 . 13 1 7 9 13 8 6 4 . 2 . Failed 65 | . 4 . 8 . . . 10 9 8 . 7 14 2 3 . Catastrophic 12 | . . . 3 . . . . 1 1 . 5 . 1 1 . Database Lockouts 1 | . . . 1 . . . . . . . . . . . . Manual 63 | . 3 . 10 . 1 3 10 11 17 1 4 1 2 . . Terminals 78 | . 2 . 14 . . 1 12 8 15 . 6 18 2 . . Fabricators 1 | . . . . . . . . . . . . . . 1 . Repair Stations 16 | . . . . . . . 2 10 . . 4 . . . . Recycling Units 10 | . 4 . . . . . . . 6 . . . . . . Scanalyzers 6 | . . . . . . . 3 . . . 1 . . 2 . Garrison Access 4 | . . . . . . . . . . . 2 . . 2 . Terminal Hacks 49 | . 1 . 5 . 13 1 4 3 9 8 1 4 . . . Record 14 | . . . . . 13 . . . . 1 . . . . . Part Schematic 1 | . . . . . . . . . 1 . . . . . . Robot Analysis 15 | . 1 . 1 . . . 3 . 5 5 . . . . . Prototype ID Bank 1 | . . . 1 . . . . . . . . . . . . Open Door 8 | . . . . . . . . 2 . 1 1 4 . . . Branch Access Points 3 | . . . . . . 1 1 1 . . . . . . . Terminal Index 1 | . . . . . . . . . 1 . . . . . . Recycling Unit Index 1 | . . . . . . . . . 1 . . . . . . Locate Traps 1 | . . . 1 . . . . . . . . . . . . Patrol Status 1 | . . . . . . . . . 1 . . . . . . Hauler Manifests 1 | . . . 1 . . . . . . . . . . . . Registered Components 1 | . . . 1 . . . . . . . . . . . . Proto ID Catalog 1 | . . . . . . . . . . 1 . . . . . Fabricator Hacks 1 | . . . . . . . . . . . . . . 1 . Network Status 1 | . . . . . . . . . . . . . . 1 . Repair Station Hacks 12 | . . . . . . . 2 6 . . 4 . . . . Scan Component 7 | . . . . . . . 1 4 . . 2 . . . . Repair 5 | . . . . . . . 1 2 . . 2 . . . . Recycling Unit Hacks 5 | . 1 . . . . . . . 4 . . . . . . Retrieve Components 5 | . 1 . . . . . . . 4 . . . . . . Scanalyzer 2 | . . . . . . . 1 . . . . . . 1 . Retrieve Study 2 | . . . . . . . 1 . . . . . . 1 . Garrison Access Hacks 1 | . . . . . . . . . . . 1 . . . . Seal Access 1 | . . . . . . . . . . . 1 . . . . Unauthorized Hacks . | . . . . . . . . . . . . . . . . Terminals . | . . . . . . . . . . . . . . . . Fabricators . | . . . . . . . . . . . . . . . . Repair Stations . | . . . . . . . . . . . . . . . . Recycling Units . | . . . . . . . . . . . . . . . . Scanalyzers . | . . . . . . . . . . . . . . . . Garrison Access . | . . . . . . . . . . . . . . . . Data Cores Recovered 2 | . 1 . 1 . . . . . . . . . . . . Used 1 | . 1 . . . . . . . . . . . . . . Hacking Detections 36 | . 2 . 5 . . . 6 3 5 . 8 4 1 2 . Full Trace Events 3 | . . . . . . . . . 3 . . . . . . Feedback Events . | . . . . . . . . . . . . . . . . Feedback Blocked . | . . . . . . . . . . . . . . . . Robot Schematics Acquired . | . . . . . . . . . . . . . . . . Robots Built . | . . . . . . . . . . . . . . . . Authchips . | . . . . . . . . . . . . . . . . Time . | . . . . . . . . . . . . . . . . Total Robot Build Rating . | . . . . . . . . . . . . . . . . Part Schematics Acquired 1 | . . . . . . . . . 1 . . . . . . Parts Built . | . . . . . . . . . . . . . . . . Authchips . | . . . . . . . . . . . . . . . . Time . | . . . . . . . . . . . . . . . . Total Part Build Rating . | . . . . . . . . . . . . . . . . Part Studies Acquired 2 | . . . . . . . 1 . . . . . . 1 . Parts Repaired 5 | . . . . . . . 1 2 . . 2 . . . . Time 201 | . . . . . . . 44 99 . . 58 . . . . Parts Recycled . | . . . . . . . . . . . . . . . . Recycled Matter . | . . . . . . . . . . . . . . . . Retrieved Matter . | . . . . . . . . . . . . . . . . Retrieved Components 4 | . . . . . . . . . 4 . . . . . . Parts Scanalyzed . | . . . . . . . . . . . . . . . . Part Schematics Acquired . | . . . . . . . . . . . . . . . . Parts Damaged . | . . . . . . . . . . . . . . . . Bothacking | -11 -10 -10 -9 -9 -9 -8 -8 -8 -8 -8 -6 -6 -5 -4 -3 ------------ Run | Yrd Mat Min Mat Min Exi Min Mat Sto Rec Scr Fac Ext Fac Fac Res Used RIF Installer . | . . . . . . . . . . . . . . . . Robots Hacked 1 | . . . . . . . . . . . . 1 . . . Non-combat . | . . . . . . . . . . . . . . . . Combat 1 | . . . . . . . . . . . . 1 . . . Robot Hacks Applied 1 | . . . . . . . . . . . . 1 . . . parse_system 1 | . . . . . . . . . . . . 1 . . . Relay Couplers Released 2 | . . . . . . . . . . . . . . 2 . Machine Destruction 2 | . . . . . . . . . . . . . . 2 . Fabnet Peak Effective % . | . . . . . . . . . . . . . . . . Robots Rewired 19 | . . . . . 5 . . . 7 . . 6 1 . . Allies Hacked . | . . . . . . . . . . . . . . . . Hacks Repelled . | . . . . . . . . . . . . . . . . Allies | -11 -10 -10 -9 -9 -9 -8 -8 -8 -8 -8 -6 -6 -5 -4 -3 -------- Run | Yrd Mat Min Mat Min Exi Min Mat Sto Rec Scr Fac Ext Fac Fac Res Total Allies 22 | . . . . . 5 . . . 7 . . 9 1 . . Largest Group 7 | . . . . . 5 5 . . 7 5 . 5 3 . . Highest-Rated Group 265 | . . . . . 66 66 . . 132 100 . 265 99 . . Highest-Rated Ally 159 | . . . . . 21 21 . . 34 34 . 159 49 . . Initial UFD Resources 34 | . . . . . . . . . . . 24 24 26 30 34 Total Orders 2 | . . . . . 2 . . . . . . . . . . STAY 1 | . . . . . 1 . . . . . . . . . . FOLLOW 1 | . . . . . 1 . . . . . . . . . . Ally Attacks 158 | . . . . . . 36 . . 5 16 . 89 12 . . Total Damage 4779 | . . . . . . 301 . . 100 272 . 2301 1805 . . Kills 28 | . . . . . . 5 . . 1 3 . 10 9 . . Allies Corrupted . | . . . . . . . . . . . . . . . . Allies Melted 4 | . . . . . . . . . . 3 . 1 . . . Intel | -11 -10 -10 -9 -9 -9 -8 -8 -8 -8 -8 -6 -6 -5 -4 -3 ------- Run | Yrd Mat Min Mat Min Exi Min Mat Sto Rec Scr Fac Ext Fac Fac Res Active Infowar (turns) 12534 | . . . 458 897 1632 1182 932 890 868 1791 1559 977 326 479 543 Sensors 8182 | . . . . . . . 772 890 868 1791 1536 977 326 479 543 Terrain 77 | . . . . . . . 77 . . . . . . . . Traps 6195 | . . . 458 897 1632 1182 149 . . . 904 94 . 474 405 ECM 23 | . . . . . . . . . . . 1 22 . . . Robot Analysis Total 14 | . 1 . 1 . . . 2 . 5 5 . . . . . Derelict Logs Recovered 4 | . . 3 . 1 . . . . . . . . . . . Drone Launches . | . . . . . . . . . . . . . . . . Drone Recoveries . | . . . . . . . . . . . . . . . . Exploration | -11 -10 -10 -9 -9 -9 -8 -8 -8 -8 -8 -6 -6 -5 -4 -3 ------------- Run | Yrd Mat Min Mat Min Exi Min Mat Sto Rec Scr Fac Ext Fac Fac Res Turns Passed 14673 | 73 284 121 730 897 1632 1182 1002 944 868 2417 1568 1195 488 492 780 Spaces Moved 9297 | 38 292 200 496 406 992 541 479 464 682 1572 1091 691 523 423 407 Core 25 | 5 . . . . . . . . . . . . . . 20 Treads 49 | 25 24 . . . . . . . . . . . . . . Legs 7438 | 8 . . 183 406 992 541 479 464 682 1572 1091 660 . 55 305 Wheels . | . . . . . . . . . . . . . . . . Hover 1710 | . 268 200 313 . . . . . . . . 31 523 368 7 Flight 75 | . . . . . . . . . . . . . . . 75 Fastest Speed 40 | 50 56 56 56 190 130 130 75 75 107 55 55 70 56 56 40 Average Speed 115 | 137 64 56 107 190 150 130 117 96 107 130 97 122 69 75 114 Slowest Speed 500 | 160 160 56 190 190 200 130 200 187 107 187 270 195 106 120 500 Overloaded Moves 158 | . . . . . . . . . . 41 88 29 . . . Propulsion Burnouts . | . . . . . . . . . . . . . . . . Robots Hopped . | . . . . . . . . . . . . . . . . Potential Cave-ins 6 | . . . . . 6 . . . . . . . . . . Cave-ins Triggered . | . . . . . . . . . . . . . . . . Exploration Rate (%) 50 | 4 54 40 49 63 93 92 36 74 96 89 30 57 12 7 9 Regions Visited 15 Branch Regions 8 Pre-discovered Areas 4 | . . 2 . . 1 . . . . 1 . . . . . Known Exits Taken 14 | . 1 1 1 1 1 1 1 1 1 1 1 1 1 1 . Unknown Exits Taken 1 | 1 . . . . . . . . . . . . . . . Scrap Searched 6 | . . 1 . . . 1 . . . 4 . . . . . Spaces Dug 29 | . . . . . 1 . 6 7 . . 8 . 7 . . Terrain Destroyed 433 | . 95 . 126 22 70 . 36 8 . . 8 . 7 52 9 Melee 29 | . . . . . 1 . 6 7 . . 8 . 7 . . Projectile 10 | . . . . . . . . 1 . . . . . . 9 AOE 394 | . 95 . 126 22 69 . 30 . . . . . . 52 . Terrain Rammed . | . . . . . . . . . . . . . . . . Walls Destroyed . | . . . . . . . . . . . . . . . . Machines Disabled . | . . . . . . . . . . . . . . . . Actions | -11 -10 -10 -9 -9 -9 -8 -8 -8 -8 -8 -6 -6 -5 -4 -3 --------- Run | Yrd Mat Min Mat Min Exi Min Mat Sto Rec Scr Fac Ext Fac Fac Res Total 12675 | 52 343 208 635 512 1105 1004 863 864 813 1936 1534 982 628 571 625 Wait 2504 | 3 19 8 76 94 12 453 296 294 94 330 377 186 37 94 131 Move 9282 | 37 291 199 495 405 991 540 478 463 681 1571 1090 690 522 422 407 Hop . | . . . . . . . . . . . . . . . . Pick Up 74 | . 5 1 5 . 5 2 7 3 7 8 8 7 3 7 6 Fast Attach 72 | 8 3 . 6 . 1 . 6 4 . 6 8 7 5 6 12 Attach 50 | . . . 3 . 3 . 11 5 1 . 7 2 4 8 6 Detach 25 | . . . 3 . 3 . 8 3 1 . 1 . 3 2 1 Swap 57 | . 2 . 7 2 4 . 6 2 . 3 2 18 1 2 8 Drop 76 | 2 2 . 8 . 3 1 5 4 1 12 5 16 6 8 3 Fire 168 | 2 21 . 32 11 13 8 29 10 . . . 6 . 5 31 Melee 242 | . . . . . 12 . 17 76 8 6 36 32 20 17 18 Ram 1 | . . . . . . . . . . . . . . . 1 Kick 1 | . . . . . . . . . . . . . . . 1 Crush . | . . . . . . . . . . . . . . . . Escape Stasis 26 | . . . . . . . . . . . . . 26 . . Rewire 97 | . . . . . 58 . . . 20 . . 18 1 . . Trap . | . . . . . . . . . . . . . . . . Miscellaneous . | . . . . . . . . . . . . . . . . Route ------- -11/Scrapyard -10/Materials (discovered 3 exits: *Mat / *Min x2) -10/Mines -9/Materials (discovered 3 exits: *Mat x2 / *Min) -9/Mines (discovered 3 exits: *Mat x2 / *Exi) -9/Exiles (discovered 2 exits: *Min x2) -8/Mines (discovered 2 exits: *Mat x2) -8/Materials (discovered 3 exits: [*Fac] / *Sto x2) -8/Storage (discovered 2 exits: [*Fac] / *Rec) -8/Recycling (discovered 2 exits: *Fac / *Scr) -8/Scraptown (discovered 2 exits: *Fac x2) -6/Factory (discovered 2 exits: *Fac / *Ext) -6/Extension -5/Factory (discovered 2 exits: *Fac / *Upp) -4/Factory -3/Research History --------- Turn | Location | Event 13 | -11/Scrapyard | Discovered new exit (range 13) 74 | -11/Scrapyard | Entered Materials 195 | -10/Materials | Discovered new exit (range 13) 263 | -10/Materials | Discovered new exit (range 10) 283 | -10/Materials | Discovered new exit (range 16) 311 | -10/Materials | Identified exit to Mines 322 | -10/Materials | Identified exit to Materials 327 | -10/Materials | Build established: Mutant 358 | -10/Materials | Entered Mines 361 | -10/Mines | Learned location of 1 exit from Materials 373 | -10/Mines | Learned location of Storage (-8) 395 | -10/Mines | Assembled infested the area 400 | -10/Mines | Assisted by a Guerilla fighting off Assembled 414 | -10/Mines | Received a Rocket Launcher from a helpful Derelict 476 | -10/Mines | Discovered exit to Materials (range 6) 479 | -10/Mines | Entered Materials 479 | -9/Materials | Evolved 2 slots: Utility x2 480 | -9/Materials | Identified exit to Materials 483 | -9/Materials | Central database locked down 547 | -9/Materials | Discovered exit to Materials (range 11) 1030 | -9/Materials | Discovered new exit (range 15) 1207 | -9/Materials | Identified exit to Mines 1209 | -9/Materials | Entered Mines 1243 | -9/Mines | Discovered exit to Materials (range 9) 1327 | -9/Mines | Learned Materials terminal intel 1509 | -9/Mines | Discovered exit to Materials (range 13) 1804 | -9/Mines | Deemed a non-threat by the Exiles lab entrance 1804 | -9/Mines | Discovered new exit (range 5) 1810 | -9/Mines | Identified exit to Exiles 2106 | -9/Mines | Entered Exiles 2106 | -9/Exiles | Found Exiles lab destroyed 2602 | -9/Exiles | Learned location of Zion (-6) 3082 | -9/Exiles | Discovered new exit (range 14) 3097 | -9/Exiles | Identified exit to Mines 3334 | -9/Exiles | Build established: Commander-Mutant 3422 | -9/Exiles | Discovered exit to Mines (range 14) 3738 | -9/Exiles | Entered Mines 3738 | -8/Mines | Accompanied by 5 allies 3855 | -8/Mines | Discovered exit to Materials (range 10) 4261 | -8/Mines | Discovered exit to Materials (range 6) 4419 | -8/Mines | Lost 4 allies 4680 | -8/Mines | Build established: Mutant 4920 | -8/Mines | Entered Materials 4920 | -8/Materials | Evolved 2 slots: Propulsion x1, Utility x1 4921 | -8/Materials | Loaded intel: 12 terminal locations 5399 | -8/Materials | Repaired Mak. Leg 5444 | -8/Materials | Discovered new exit (range 15) 5867 | -8/Materials | Identified exit to Storage 5922 | -8/Materials | Entered Storage 6439 | -8/Storage | Discovered new exit (range 16) 6560 | -8/Storage | Garrison activated, responded to threat 6609 | -8/Storage | Destroyed 8 combat bots 6714 | -8/Storage | Repaired Imp. Sensor Array 6777 | -8/Storage | Repaired Broken Mak. Axe 6780 | -8/Storage | Identified exit to Recycling 6862 | -8/Storage | Used back door to open Recycling access 6866 | -8/Storage | Entered Recycling 7194 | -8/Recycling | Build established: Hacker-Mutant 7327 | -8/Recycling | Discovered new exit (range 16) 7555 | -8/Recycling | Build established: Commander-Mutant 7653 | -8/Recycling | Scanned before Scraplab entrance 7670 | -8/Recycling | Entered Scraplab 7693 | -8/Recycling | Discovered new exit (range 2) 7693 | -8/Recycling | Identified exit to Scraptown 7734 | -8/Recycling | Entered Scraptown 7734 | -8/Scraptown | Accompanied by 5 allies 7994 | -8/Scraptown | Visited Spacefarers 8039 | -8/Scraptown | Discovered new exit (range 9) 8120 | -8/Scraptown | Visited IN-MT5's Study 8146 | -8/Scraptown | Visited SPCMW 8177 | -8/Scraptown | Visited UFD Registry 8177 | -8/Scraptown | Registered with UFD as "Hellbank" 8185 | -8/Scraptown | Visited Cave Peace 8224 | -8/Scraptown | Visited Fellowship of the Rings 8255 | -8/Scraptown | Visited Junk Repository 8523 | -8/Scraptown | Visited Modified Component R&D 8547 | -8/Scraptown | Visited Scrap Suit Storage 8566 | -8/Scraptown | Visited Sword Containment 8579 | -8/Scraptown | Found Prototype Slashing Weapon 8579 | -8/Scraptown | Identified Companion Sword 8674 | -8/Scraptown | Visited A0-MCA Data Center 8686 | -8/Scraptown | Given a C- rating by A0-MCA 8694 | -8/Scraptown | Found A0-MCA's Component Scanner 8747 | -8/Scraptown | Visited Infowarlord's Domain 8805 | -8/Scraptown | Found Exp. Signal Interpreter 8848 | -8/Scraptown | Received an X-ray algorithm 8857 | -8/Scraptown | Visited Analyses Database 8867 | -8/Scraptown | Ran an X-ray algorithm 9136 | -8/Scraptown | Visited Science Guys 9213 | -8/Scraptown | Visited LU-1G1's Boring Crew 9243 | -8/Scraptown | Visited Curators Association 9646 | -8/Scraptown | Met Optimus 9646 | -8/Scraptown | Accepted into 0bPrime 9812 | -8/Scraptown | Build established: Commander-Gladiator 10046 | -8/Scraptown | Civil war broke out across Scraptown 10051 | -8/Scraptown | Found Prototype Leg 10051 | -8/Scraptown | Identified Potential Leg 10059 | -8/Scraptown | Found PL-3XN's Ring of Power 10098 | -8/Scraptown | Found Thermal Lance 10121 | -8/Scraptown | Identified exit to Factory 10151 | -8/Scraptown | Entered Factory 10151 | -6/Factory | Evolved 4 slots: Power x1, Utility x3 10180 | -6/Factory | Lost 10 allies 10225 | -6/Factory | Repaired Imp. Deuterium Engine 10400 | -6/Factory | Build established: Hacker-Gladiator 10844 | -6/Factory | Lost 4 parts (1p1n2u) 10860 | -6/Factory | Discovered new exit (range 15) 11081 | -6/Factory | Repaired Imp. Deuterium Engine 11710 | -6/Factory | Discovered new exit (range 10) 11718 | -6/Factory | Identified exit to Extension 11719 | -6/Factory | Entered Extension 12134 | -6/Extension | Lost 4 allies 12140 | -6/Extension | Lost 3 parts (1p1n1u) 12254 | -6/Extension | Rescued A7 12364 | -6/Extension | Rescued a captive Derelict 12365 | -6/Extension | Rescued a captive Derelict 12628 | -6/Extension | Build established: Scavenger-Gladiator 12680 | -6/Extension | Spotted B-75 Beast 12694 | -6/Extension | Spotted B-75 Beast 12709 | -6/Extension | Destroyed B-75 Beast 12728 | -6/Extension | Allies destroyed B-75 Beast 12758 | -6/Extension | Discovered new exit (range 4) 12766 | -6/Extension | Identified exit to Factory 12802 | -6/Extension | Attached CPS modules to A7 12812 | -6/Extension | Murdered A7 12826 | -6/Extension | Extracted ID and sensor layout for unrecognized location from A7's data core 12874 | -6/Extension | Found Med. Regenerative Plating 12914 | -6/Extension | Entered Factory 12914 | -5/Factory | Accompanied by 2 allies 12914 | -5/Factory | Evolved 2 slots: Propulsion x1, Utility x1 12981 | -5/Factory | Discovered new exit (range 5) 12985 | -5/Factory | Identified exit to Upper Caves 13214 | -5/Factory | Build established: Hacker-Mutant 13333 | -5/Factory | Discovered new exit (range 11) 13348 | -5/Factory | Identified exit to Factory 13402 | -5/Factory | Entered another Factory area 13402 | -4/Factory | Evolved 2 slots: Utility x2 13645 | -4/Factory | Discovered new exit (range 16) 13893 | -4/Factory | Identified exit to Research 13894 | -4/Factory | Entered Research 13894 | -3/Research | Evolved 2 slots: Weapon x2 13978 | -3/Research | Build established: Scavenger-Skirmisher 14389 | -3/Research | Garrison activated, responded to threat 14501 | -3/Research | Destroyed 9 combat bots 14530 | -3/Research | Garrison activated, responded to threat 14570 | -3/Research | Core integrity fell below 50% 14612 | -3/Research | Core integrity fell below 20% 14664 | -3/Research | Spotted B-86 Titan 14665 | -3/Research | Lost 31 parts (3p6n11u11w) 14674 | -3/Research | Destroyed by B-86 Titan with Railgun Last Messages --------------- 14631_ Slug penetrates S-43 Plague. 14631_ S-43 Plague destroyed. 14634_ Penetrated by Slug. 14634_ Slug penetrates Door. 14634_ Coil Gun destroyed. 14635_ Dropped Mic. Antimatter Reactor. 14636_ Acquired 5 matter. 14637_ U-05 Engineer builds a Door. 14638_ Acquired Xenon Bombardment Thruster. 14638_ U-05 Engineer builds a Door. 14655_ ALERT: Potential suspicious activity detected, Programmers report to Research Zone 4R. 14666_ Recycling Unit disabled. 14668_ System corrupted: Matter fused (-8). 14669_ Xenon Bombardment Thruster destroyed. 14669_ Knocked back. 14669_ Penetrated by Slug. 14669_ Slug penetrates Wall. [Achievement: I Think I Know What's Going On] Map ----- +----------------------------------------------------+ | ?????????????????????????????????????????????????? | | ?????????????????????????????????????????????????? | | ?????????????????????????????????????????????????? | | ?????????????????????????????????????????????????? | | ?????????????????????????????????????????????????? | | ?????????????????????????????????????????????????? | | ?????????????????????????????????????????????????? | | ?????????????????????????????????????????????????? | | ?????????????????????????????????????????????????? | | ?????????????????????????????????????????????????? | | ?????????????????????????????????????????????????? | | ?????????????????????????????????????????????????? | | ?????????????????????????????????????????????????? | | ?????????????????????????????????????????????????? | | ?????????????????????????????????????????????????? | | ?????????????????????????????????????????????????? | | ?????????????????????????????????????????????????? | | ?????????????????????????????????????????????????? | | ?????????????????????????????????????????????????? | | ?????????????????????????????????????????????????? | | ?????????????????????###############?????????????? | | ?????????????????????# #?????????????? | | ?????????????????????# ! #?????????????? | | ?????????????????????# #???"?????????? | | ?????????????????????# !#? """???????? | | ?????????????????????# @ #? ???????? | | ?????????????????????# ! # ??????? | | ?????????????????????#+#+;#;####+### ??????? | | ?????????????????????# ??????? | | ?????????????????????+ ??????? | | ?????????????????????# ?????? | | ?????????????????????+ ??????? | | ?????????????????????#### ######+?????????? | | ????????????????????????# k#???????????????? | | ????????????????????????# #???????????????? | | ????????????????????????# #???????????????? | | ????????????????????????# %#???????????????? | | ????????????????????????# !!! #???????????????? | | ????????????????????????# !! #???????????????? | | ??????????????????????##" !! #???????????????? | | ??????????????????????# B #???????????????? | | ??????????????????????# #???????????????? | | ??????????????????????### #???????????????? | | ????????????????????????# " #???????????????? | | ????????????????????????# " ################? | | ????????????????????????# "" ? | | ????????????????????????# | | ????????????????????????# | | ????????????????????????#! | | ????????????????????????######## ##########???? | +----------------------------------------------------+ Best States ------------- Heat Dissipation 77 Energy Generation 49 Energy Capacity 685 Matter Stores 300 Matter Capacity 300 Sight Range 16 Robot Scan Range 16 Terrain Scan Range 18 Terrain Scan Density 110 ECM Strength 2 Power Amplification 40 Armor Coverage 225 Melee Speed Boost 20 Phase Shifting 10 Evasion (%) 65 Melee Accuracy 8 Target Analysis 8 Recoil Reduction 2 Force Boost 20 Offensive Hacking 30 Defensive Hacking 24 Authchip Count 4 Item Schematics ----------------- VSS Leg | -8/Recycling | Hacked Robot Schematics ------------------ None Fabricated ------------ Nothing Repaired ---------- Mak. Leg | 18% | -8/Materials Imp. Sensor Array | 4% | -8/Storage Mak. Axe | 49% | -8/Storage | Broken Imp. Deuterium Engine | 18% | -6/Factory Imp. Deuterium Engine | 47% | -6/Factory Studied --------- VSS Leg | -8/Materials | Hacked Antigrav Array | -4/Factory | Hacked Alien Tech Used ----------------- None Achievements -------------- I Think I Know What's Going On It Was An Accident, I Swear Challenges ------------ None Game ------ Seed MicrowarpTowerGutpuncher Manual? 0 Play Time 01:54:40 Cumulative 125.8 hours Start 2026.09.16 @ 03:12:28 End 2026.09.16 @ 05:06:04 Sessions 1 Manual Loads 0 Difficulty Rogue Special Mode None Game No. 144 Rogue 144 Adventurer 0 Explorer 0 Win Type - Total 0 Types 0/0/0/0/0/0/0/0/0/0 Lore% 50 Gallery% 54 Achievement% 43 Wizard Run 0 Options --------- Layout 1 ASCII 0 Keyboard 0 Movement Mouse Keybinds 0 Fullscreen 2 Font 24/Smallcaps Map View 50x35 Zoom Use 0% Tactical HUD 1 Map Filters NONE Filters NONE Steam 1 RUN: 7506f9da-cd5e-4bf4-8f0f-afc998c6280d